[Event "Vergani Le Terrazze-Elite 2019"]
[Site "Villorba"]
[Date "2019.01.04"]
[Round "6"]
[White "Buhmann, Rainer"]
[Black "Prithu Gupta"]
[Result "1-0"]
[ECO "E11"]
[WhiteElo "2574"]
[BlackElo "2462"]
[Annotator "ChessBase"]
[PlyCount "49"]
[EventDate "2019.01.02"]
[EventType "swiss"]
[EventCountry "ITA"]
[SourceTitle "playchess.com"]
[Source "ChessBase"]
[SourceQuality "1"]
[TimeControl "5400+30"]

1. Nf3 {[%emt 0:00:00]} d5 {[%emt 0:00:08]} 2. d4 {[%emt 0:00:00]} Nf6 {[%emt 0:00:18]} 3. c4 {[%emt 0:00:00]} e6 {[%emt 0:00:07]} 4. g3 {[%emt 0:00:00]} Bb4+ {[%emt 0:00:05]} 5. Bd2 {[%emt 0:00:04]} Be7 {[%emt 0:00:08]} 6. Bg2 {[%emt 0:00:24]} c6 {[%emt 0:00:10]} 7. Qc2 {[%emt 0:01:14]} b6 {[%emt 0:00:12]} 8. O-O {[%emt 0:00:49]} Nbd7 {[%emt 0:00:25]} 9. cxd5 {[%emt 0:01:01]} cxd5 {[%emt 0:00:19]} 10. Rc1 {[%emt 0:00:52]} O-O {[%emt 0:02:43]} 11. Bf4 {[%emt 0:04:04]} Bb7 {[%emt 0:01:02]} 12. Nc3 {[%emt 0:04:46]} Rc8 {[%emt 0:02:23]} 13. Qb3 {[%emt 0:03:50]} a6 {[%emt 0:01:31]} 14. a4 {[%emt 0:00:37]} Nb8 {[%emt 0:01:35]} 15. Ne5 {[%emt 0:02:42]} Nc6 {[%emt 0:01:04]} 16. Nxc6 {[%emt 0:00:35]} Rxc6 {[%emt 0:00:11]} 17. Na2 {[%emt 0:02:00]} b5 {[%emt 0:23:31]} 18. axb5 {[%emt 0:05:44]} Qb6 {[%emt 0:00:16]} 19. Nc3 {[%emt 0:12:31]} Rfc8 {[%emt 0:22:12]} 20. Qa4 {[%emt 0:11:34]} Rc4 {[%emt 0:00:58]} 21. Qa5 {[%emt 0:00:46]} Qxd4 {[%emt 0:16:12]} 22. bxa6 {[%emt 0:01:13]} Bb4 {[%emt 0:01:13]} 23. axb7 {[%emt 0:06:48]} Bxa5 {[%emt 0:00:10]} 24. bxc8=Q+ {[%emt 0:00:10]} Rxc8 {[%emt 0:00:02]} 25. Nb5 {[%emt 0:00:56]} 1-0

[Event "Vergani Le Terrazze-Elite 2019"]
[Site "Villorba"]
[Date "2019.01.04"]
[Round "6"]
[White "Epishin, Vladimir"]
[Black "Sonis, Francesco"]
[Result "1/2-1/2"]
[ECO "D11"]
[WhiteElo "2563"]
[BlackElo "2473"]
[Annotator "ChessBase"]
[PlyCount "91"]
[EventDate "2019.01.02"]
[EventType "swiss"]
[EventCountry "ITA"]
[SourceTitle "playchess.com"]
[Source "ChessBase"]
[SourceQuality "1"]
[TimeControl "5400+30"]

1. d4 {[%emt 0:00:00]} Nf6 {[%emt 0:01:27]} 2. Nf3 {[%emt 0:00:06]} d5 {[%emt 0:00:12]} 3. c4 {[%emt 0:00:50]} c6 {[%emt 0:00:28]} 4. e3 {[%emt 0:01:33]} Bg4 {[%emt 0:00:04]} 5. Nbd2 {[%emt 0:01:16]} e6 {[%emt 0:00:11]} 6. Bd3 {[%emt 0:00:26]} Nbd7 {[%emt 0:02:25]} 7. h3 {[%emt 0:01:32]} Bh5 {[%emt 0:00:06]} 8. b3 {[%emt 0:00:20]} Bd6 {[%emt 0:02:41]} 9. Bb2 {[%emt 0:00:07]} O-O {[%emt 0:00:17]} 10. Qc2 {[%emt 0:00:51]} Bg6 {[%emt 0:00:30]} 11. Bxg6 {[%emt 0:00:54]} hxg6 {[%emt 0:00:27]} 12. O-O {[%emt 0:00:05]} Qe7 {[%emt 0:02:29]} 13. e4 {[%emt 0:11:54]} dxe4 {[%emt 0:03:03]} 14. Nxe4 {[%emt 0:00:03]} Ba3 {[%emt 0:00:57]} 15. Nxf6+ {[%emt 0:00:39]} gxf6 {[%emt 0:05:49]} 16. Rfe1 {[%emt 0:00:20]} Bxb2 {[%emt 0:03:54]} 17. Qxb2 {[%emt 0:02:37]} Qd6 {[%emt 0:00:42]} 18. Rad1 {[%emt 0:00:13]} Kg7 {[%emt 0:00:41]} 19. Nd2 {[%emt 0:03:40]} Rad8 {[%emt 0:20:10]} 20. Ne4 {[%emt 0:01:02]} Qf4 {[%emt 0:00:07]} 21. c5 {[%emt 0:16:00]} Qc7 {[%emt 0:05:21]} 22. b4 {[%emt 0:04:00]} Rh8 {[%emt 0:04:10]} 23. Qa3 {[%emt 0:06:56]} b5 {[%emt 0:07:42]} 24. Nd6 {[%emt 0:03:20]} Nb6 {[%emt 0:01:38]} 25. Nxf7 {[%emt 0:12:38]} Kxf7 {[%emt 0:09:39]} 26. cxb6 {[%emt 0:01:52]} axb6 {[%emt 0:00:02]} 27. Qe3 {[%emt 0:00:21]} Qd6 {[%emt 0:00:35]} 28. Rc1 {[%emt 0:01:04]} Qd5 {[%emt 0:01:24]} 29. Qf4 {[%emt 0:02:33]} Rd6 {[%emt 0:00:35]} 30. Rc3 {[%emt 0:01:23]} g5 {[%emt 0:01:18]} 31. Qc1 {[%emt 0:00:57]} Rh4 {[%emt 0:00:44]} 32. Qc2 {[%emt 0:00:01]} Kg7 {[%emt 0:03:44]} 33. Rc1 {[%emt 0:01:29]} Rxd4 {[%emt 0:00:04]} 34. Rxc6 {[%emt 0:01:30]} Rxc6 {[%emt 0:01:53]} 35. Qxc6 {[%emt 0:00:03]} Rd1+ {[%emt 0:01:30]} 36. Kh2 {[%emt 0:00:01]} Rxc1 {[%emt 0:00:45]} 37. Qxc1 {[%emt 0:00:03]} Qxa2 {[%emt 0:00:11]} 38. Qc7+ {[%emt 0:00:12]} Kg6 {[%emt 0:00:04]} 39. Qxb6 {[%emt 0:01:10]} Qc4 {[%emt 0:00:05]} 40. Qd6 {[%emt 0:01:36]} e5 {[%emt 0:00:31]} 41. Qe7 {[%emt 0:08:01]} Qf4+ {[%emt 0:01:06]} 42. Kg1 {[%emt 0:00:07]} Qc1+ {[%emt 0:00:04]} 43. Kh2 {[%emt 0:00:08]} Qf4+ {[%emt 0:00:05]} 44. Kg1 {[%emt 0:00:05]} Qc1+ {[%emt 0:00:05]} 45. Kh2 {[%emt 0:00:05]} Qf4+ {[%emt 0:00:10]} 46. Kg1 {[%emt 0:00:05]} 1/2-1/2

[Event "Vergani Le Terrazze-Elite 2019"]
[Site "Villorba"]
[Date "2019.01.04"]
[Round "6"]
[White "Basso, Pier Luigi"]
[Black "Ter-Sahakyan, Samvel"]
[Result "0-1"]
[ECO "D24"]
[WhiteElo "2522"]
[BlackElo "2574"]
[Annotator "ChessBase"]
[PlyCount "112"]
[EventDate "2019.01.02"]
[EventType "swiss"]
[EventCountry "ITA"]
[SourceTitle "playchess.com"]
[Source "ChessBase"]
[SourceQuality "1"]
[TimeControl "5400+30"]

1. d4 {[%emt 0:11:20]} Nf6 {[%emt 0:00:18]} 2. c4 {[%emt 0:01:49]} e6 {[%emt 0:00:08]} 3. Nf3 {[%emt 0:00:04]} d5 {[%emt 0:02:48]} 4. Nc3 {[%emt 0:00:12]} dxc4 {[%emt 0:02:27]} 5. e4 {[%emt 0:01:45]} b5 {[%emt 0:00:35]} 6. e5 {[%emt 0:00:58]} Nd5 {[%emt 0:00:04]} 7. Nxb5 {[%emt 0:00:44]} Nb6 {[%emt 0:00:14]} 8. Be2 {[%emt 0:01:17]} Nc6 {[%emt 0:04:34]} 9. O-O {[%emt 0:00:32]} Be7 {[%emt 0:00:21]} 10. Qd2 {[%emt 0:00:39]} Nb4 {[%emt 0:08:06]} 11. Qf4 {[%emt 0:03:30]} Qd7 {[%emt 0:06:48]} 12. Nc3 {[%emt 0:02:01]} Bb7 {[%emt 0:06:11]} 13. Ne4 {[%emt 0:10:04]} Nd3 {[%emt 0:05:27]} 14. Bxd3 {[%emt 0:01:11]} cxd3 {[%emt 0:00:02]} 15. Nc5 {[%emt 0:01:47]} Bxc5 {[%emt 0:07:40]} 16. dxc5 {[%emt 0:01:43]} Nd5 {[%emt 0:00:03]} 17. Qe4 {[%emt 0:13:11]} Qb5 {[%emt 0:05:55]} 18. a4 {[%emt 0:02:10]} Qxc5 {[%emt 0:05:18]} 19. Qxd3 {[%emt 0:00:19]} O-O-O {[%emt 0:02:46]} 20. Bg5 {[%emt 0:12:15]} Nb4 {[%emt 0:09:24]} 21. Qc3 {[%emt 0:05:07]} Rd5 {[%emt 0:02:05]} 22. Qxc5 {[%emt 0:04:45]} Rxc5 {[%emt 0:00:19]} 23. Be3 {[%emt 0:00:41]} Rc2 {[%emt 0:05:29]} 24. Nd4 {[%emt 0:01:44]} Rxb2 {[%emt 0:02:08]} 25. Bc1 {[%emt 0:09:18]} Ra2 {[%emt 0:00:36]} 26. Bg5 {[%emt 0:03:45]} Rxa1 {[%emt 0:03:25]} 27. Rxa1 {[%emt 0:00:01]} Nd3 {[%emt 0:00:14]} 28. f4 {[%emt 0:02:35]} h6 {[%emt 0:01:01]} 29. Bh4 {[%emt 0:00:51]} Nxf4 {[%emt 0:01:47]} 30. Rf1 {[%emt 0:00:01]} Ng6 {[%emt 0:05:46]} 31. Bg3 {[%emt 0:00:01]} Rf8 {[%emt 0:00:20]} 32. h4 {[%emt 0:00:28]} h5 {[%emt 0:00:05]} 33. Rc1 {[%emt 0:01:54]} a6 {[%emt 0:01:37]} 34. Bf2 {[%emt 0:04:54]} Rd8 {[%emt 0:00:28]} 35. Nb3 {[%emt 0:00:43]} Nf4 {[%emt 0:01:58]} 36. Rc4 {[%emt 0:01:13]} Rd1+ {[%emt 0:01:32]} 37. Kh2 {[%emt 0:00:04]} Nd5 {[%emt 0:00:57]} 38. Rc2 {[%emt 0:00:50]} Nb4 {[%emt 0:02:30]} 39. Rc4 {[%emt 0:00:53]} Nc6 {[%emt 0:00:13]} 40. Bg3 {[%emt 0:00:44]} Rd5 {[%emt 0:00:09]} 41. Re4 {[%emt 0:00:57]} a5 {[%emt 0:00:21]} 42. Re2 {[%emt 0:00:47]} Ba6 {[%emt 0:04:53]} 43. Rc2 {[%emt 0:01:00]} Nxe5 {[%emt 0:00:43]} 44. Nc5 {[%emt 0:00:02]} Bb7 {[%emt 0:01:05]} 45. Kh3 {[%emt 0:00:28]} Nc6 {[%emt 0:00:27]} 46. Kh2 {[%emt 0:00:47]} e5 {[%emt 0:00:22]} 47. Bf2 {[%emt 0:00:12]} Nb4 {[%emt 0:00:46]} 48. Re2 {[%emt 0:00:22]} Bc6 {[%emt 0:00:30]} 49. Kg1 {[%emt 0:00:38]} f6 {[%emt 0:01:12]} 50. Ne6 {[%emt 0:00:01]} Bxa4 {[%emt 0:00:28]} 51. Nxg7 {[%emt 0:00:02]} Bd1 {[%emt 0:00:11]} 52. Rb2 {[%emt 0:00:08]} Bg4 {[%emt 0:01:11]} 53. Ne8 {[%emt 0:00:07]} f5 {[%emt 0:00:41]} 54. Rb3 {[%emt 0:00:26]} Rd3 {[%emt 0:00:18]} 55. Rb2 {[%emt 0:00:08]} Rd1+ {[%emt 0:00:55]} 56. Kh2 {[%emt 0:00:01]} Nd3 {[%emt 0:00:06]} 0-1

[Event "Vergani Le Terrazze-Elite 2019"]
[Site "Villorba"]
[Date "2019.01.04"]
[Round "6"]
[White "Gazik, Viktor"]
[Black "Can, Isik"]
[Result "1-0"]
[ECO "A11"]
[WhiteElo "2504"]
[BlackElo "2379"]
[Annotator "ChessBase"]
[PlyCount "48"]
[EventDate "2019.01.02"]
[EventType "swiss"]
[EventCountry "ITA"]
[SourceTitle "playchess.com"]
[Source "ChessBase"]
[SourceQuality "1"]
[TimeControl "5400+30"]

1. Nf3 {[%emt 1:30:30]} d5 {[%emt 1:30:30]} 2. g3 {[%emt 0:00:30]} Nf6 {[%emt 0:00:30]} 3. Bg2 {[%emt 0:00:30]} c6 {[%emt 0:00:30]} 4. O-O {[%emt 0:00:30]} Bf5 {[%emt 0:00:30]} 5. d3 {[%emt 0:00:30]} e6 {[%emt 0:00:30]} 6. c4 {[%emt 0:00:30]} dxc4 {[%emt 0:00:30]} 7. dxc4 {[%emt 0:00:30]} Qxd1 {[%emt 0:00:30]} 8. Rxd1 {[%emt 0:00:30]} Bc2 {[%emt 0:00:30]} 9. Rd2 {[%emt 0:00:30]} Bg6 {[%emt 0:00:30]} 10. Ne5 {[%emt 0:00:30]} Bf5 {[%emt 0:00:30]} 11. Nd3 {[%emt 0:00:30]} Nbd7 {[%emt 0:00:30]} 12. b3 {[%emt 0:00:30]} O-O-O {[%emt 0:00:30]} 13. Bb2 {[%emt 0:00:30]} Be7 {[%emt 0:00:30]} 14. Nc3 {[%emt 0:00:30]} Nc5 {[%emt 0:00:30]} 15. Ba3 {[%emt 0:00:30]} Bxd3 {[%emt 0:00:30]} 16. exd3 {[%emt 0:00:30]} Nce4 {[%emt 0:00:30]} 17. Nxe4 {[%emt 0:00:30]} Bxa3 {[%emt 0:00:30]} 18. Nxf6 {[%emt 0:00:30]} gxf6 {[%emt 0:00:30]} 19. d4 {[%emt 0:00:30]} e5 {[%emt 0:00:30]} 20. d5 {[%emt 0:00:30]} Bc5 {[%emt 0:00:30]} 21. Rd3 {[%emt 0:00:30]} Bd4 {[%emt 0:00:30]} 22. Re1 {[%emt 0:00:30]} c5 {[%emt 0:00:30]} 23. Re4 {[%emt 0:00:30]} Kd7 {[%emt 0:00:30]} 24. Rh4 {[%emt 0:00:30]} h6 {[%emt 0:00:30]} 1-0

[Event "Vergani Le Terrazze-Elite 2019"]
[Site "Villorba"]
[Date "2019.01.04"]
[Round "6"]
[White "Blohberger, Felix"]
[Black "Yankelevich, Lev"]
[Result "1/2-1/2"]
[ECO "C47"]
[WhiteElo "2450"]
[BlackElo "2448"]
[Annotator "ChessBase"]
[PlyCount "58"]
[EventDate "2019.01.02"]
[EventType "swiss"]
[EventCountry "ITA"]
[SourceTitle "playchess.com"]
[Source "ChessBase"]
[SourceQuality "1"]
[TimeControl "5400+30"]

1. e4 {[%emt 0:02:14]} e5 {[%emt 0:00:00]} 2. Nf3 {[%emt 0:00:11]} Nf6 {[%emt 0:00:02]} 3. Nc3 {[%emt 0:00:21]} Nc6 {[%emt 0:00:06]} 4. d4 {[%emt 0:00:11]} exd4 {[%emt 0:00:03]} 5. Nxd4 {[%emt 0:00:08]} Bb4 {[%emt 0:00:05]} 6. Nxc6 {[%emt 0:00:06]} bxc6 {[%emt 0:00:02]} 7. Bd3 {[%emt 0:00:07]} d5 {[%emt 0:00:08]} 8. exd5 {[%emt 0:00:05]} O-O {[%emt 0:00:02]} 9. O-O {[%emt 0:00:08]} cxd5 {[%emt 0:00:38]} 10. h3 {[%emt 0:00:23]} Be6 {[%emt 0:00:15]} 11. Qf3 {[%emt 0:05:28]} Rb8 {[%emt 0:01:02]} 12. Bf4 {[%emt 0:09:45]} Bd6 {[%emt 0:00:23]} 13. b3 {[%emt 0:00:26]} Rb4 {[%emt 0:02:37]} 14. Bxd6 {[%emt 0:00:09]} Qxd6 {[%emt 0:00:02]} 15. a3 {[%emt 0:00:08]} Rbb8 {[%emt 0:07:51]} 16. Qg3 {[%emt 0:04:08]} Qxg3 {[%emt 0:01:36]} 17. fxg3 {[%emt 0:00:04]} c5 {[%emt 0:00:03]} 18. Rae1 {[%emt 0:12:44]} Rfd8 {[%emt 0:12:51]} 19. Rf4 {[%emt 0:03:30]} Bd7 {[%emt 0:06:31]} 20. Rxf6 {[%emt 0:11:52]} gxf6 {[%emt 0:02:50]} 21. Nxd5 {[%emt 0:00:04]} Kg7 {[%emt 0:01:52]} 22. Nf4 {[%emt 0:01:47]} Rb6 {[%emt 0:01:18]} 23. a4 {[%emt 0:05:23]} Rd6 {[%emt 0:01:09]} 24. g4 {[%emt 0:11:36]} Be6 {[%emt 0:02:39]} 25. Rf1 {[%emt 0:06:08]} Bxb3 {[%emt 0:03:45]} 26. cxb3 {[%emt 0:00:16]} Rxd3 {[%emt 0:00:04]} 27. Nxd3 {[%emt 0:00:06]} Rxd3 {[%emt 0:00:04]} 28. Rc1 {[%emt 0:00:15]} Rxb3 {[%emt 0:06:47]} 29. Rxc5 {[%emt 0:00:12]} Rb6 {[%emt 0:00:02]} 1/2-1/2

[Event "Vergani Le Terrazze-Elite 2019"]
[Site "Villorba"]
[Date "2019.01.04"]
[Round "6"]
[White "Solomon, Kenny"]
[Black "Andriasian, Zaven"]
[Result "0-1"]
[ECO "B31"]
[WhiteElo "2413"]
[BlackElo "2604"]
[Annotator "ChessBase"]
[PlyCount "92"]
[EventDate "2019.01.02"]
[EventType "swiss"]
[EventCountry "ITA"]
[SourceTitle "playchess.com"]
[Source "ChessBase"]
[SourceQuality "1"]
[TimeControl "5400+30"]

1. e4 {[%emt 0:00:00]} c5 {[%emt 0:00:04]} 2. Nf3 {[%emt 0:00:00]} d6 {[%emt 0:00:07]} 3. Bb5+ {[%emt 0:00:08]} Nc6 {[%emt 0:00:08]} 4. O-O {[%emt 0:00:32]} Bd7 {[%emt 0:00:06]} 5. Re1 {[%emt 0:02:38]} Nf6 {[%emt 0:00:09]} 6. h3 {[%emt 0:05:49]} g6 {[%emt 0:00:21]} 7. c3 {[%emt 0:00:08]} a6 {[%emt 0:00:20]} 8. Bf1 {[%emt 0:00:47]} Bg7 {[%emt 0:00:13]} 9. d4 {[%emt 0:00:30]} O-O {[%emt 0:00:47]} 10. d5 {[%emt 0:10:09]} Na7 {[%emt 0:02:16]} 11. a4 {[%emt 0:06:54]} e5 {[%emt 0:05:51]} 12. dxe6 {[%emt 0:06:22]} Bxe6 {[%emt 0:00:20]} 13. Na3 {[%emt 0:07:00]} Qe7 {[%emt 0:06:14]} 14. Nc4 {[%emt 0:07:33]} Rad8 {[%emt 0:00:17]} 15. Bf4 {[%emt 0:03:05]} Nc8 {[%emt 0:10:26]} 16. Qc1 {[%emt 0:06:52]} Nh5 {[%emt 0:16:34]} 17. Bg5 {[%emt 0:00:44]} f6 {[%emt 0:04:04]} 18. Bd2 {[%emt 0:10:08]} Qf7 {[%emt 0:01:49]} 19. Ne3 {[%emt 0:00:22]} g5 {[%emt 0:02:04]} 20. Nf5 {[%emt 0:07:01]} d5 {[%emt 0:01:59]} 21. Nxg7 {[%emt 0:00:13]} Nxg7 {[%emt 0:03:15]} 22. exd5 {[%emt 0:02:55]} Bxd5 {[%emt 0:00:37]} 23. Nh2 {[%emt 0:00:17]} h5 {[%emt 0:03:02]} 24. a5 {[%emt 0:05:47]} Nd6 {[%emt 0:02:35]} 25. Be3 {[%emt 0:00:54]} Ne6 {[%emt 0:00:23]} 26. Be2 {[%emt 0:04:59]} Nf5 {[%emt 0:00:55]} 27. Bf3 {[%emt 0:00:52]} Nh4 {[%emt 0:14:44]} 28. Bxd5 {[%emt 0:01:02]} Rxd5 {[%emt 0:00:08]} 29. Qc2 {[%emt 0:00:42]} Rfd8 {[%emt 0:01:59]} 30. b4 {[%emt 0:02:15]} cxb4 {[%emt 0:04:30]} 31. cxb4 {[%emt 0:00:10]} Nf5 {[%emt 0:01:38]} 32. Bb6 {[%emt 0:01:51]} R8d7 {[%emt 0:00:25]} 33. Nf1 {[%emt 0:01:32]} Nf4 {[%emt 0:01:31]} 34. Ne3 {[%emt 0:04:47]} Nxe3 {[%emt 0:00:11]} 35. Rxe3 {[%emt 0:00:08]} Nd3 {[%emt 0:04:03]} 36. Qc8+ {[%emt 0:01:47]} Kg7 {[%emt 0:00:09]} 37. Qc3 {[%emt 0:00:35]} h4 {[%emt 0:01:32]} 38. Rb1 {[%emt 0:00:48]} Qg6 {[%emt 0:02:42]} 39. Rd1 {[%emt 0:00:38]} Nxb4 {[%emt 0:02:46]} 40. Rde1 {[%emt 0:00:02]} Nc6 {[%emt 0:00:23]} 41. Kh2 {[%emt 0:00:48]} Ne5 {[%emt 0:00:29]} 42. Qc8 {[%emt 0:00:40]} Qf5 {[%emt 0:00:36]} 43. Rc3 {[%emt 0:00:31]} g4 {[%emt 0:01:50]} 44. Rc7 {[%emt 0:00:28]} gxh3 {[%emt 0:00:46]} 45. Rxe5 {[%emt 0:00:34]} Qxe5+ {[%emt 0:00:19]} 46. Kxh3 {[%emt 0:00:08]} Rd3+ {[%emt 0:00:23]} 0-1

[Event "Vergani Le Terrazze-Elite 2019"]
[Site "Villorba"]
[Date "2019.01.04"]
[Round "6"]
[White "Gilevych, Artem"]
[Black "Shyam, Sundar M."]
[Result "1/2-1/2"]
[ECO "E41"]
[WhiteElo "2404"]
[BlackElo "2509"]
[Annotator "ChessBase"]
[PlyCount "41"]
[EventDate "2019.01.02"]
[EventType "swiss"]
[EventCountry "ITA"]
[SourceTitle "playchess.com"]
[Source "ChessBase"]
[SourceQuality "1"]
[TimeControl "5400+30"]

1. d4 {[%emt 0:00:21]} Nf6 {[%emt 0:00:00]} 2. c4 {[%emt 0:00:35]} e6 {[%emt 0:00:00]} 3. Nc3 {[%emt 0:03:30]} Bb4 {[%emt 0:00:00]} 4. e3 {[%emt 0:00:06]} c5 {[%emt 0:00:00]} 5. Bd3 {[%emt 0:00:28]} Nc6 {[%emt 0:00:03]} 6. Nf3 {[%emt 0:01:06]} Bxc3+ {[%emt 0:00:05]} 7. bxc3 {[%emt 0:00:05]} d6 {[%emt 0:00:02]} 8. O-O {[%emt 0:02:17]} e5 {[%emt 0:00:03]} 9. Nd2 {[%emt 0:05:15]} O-O {[%emt 0:00:11]} 10. Ne4 {[%emt 0:06:00]} Nxe4 {[%emt 0:01:12]} 11. Bxe4 {[%emt 0:00:02]} Qe7 {[%emt 0:11:17]} 12. dxc5 {[%emt 0:10:58]} dxc5 {[%emt 0:00:02]} 13. Bxc6 {[%emt 0:02:36]} bxc6 {[%emt 0:00:01]} 14. Qa4 {[%emt 0:00:42]} Bf5 {[%emt 0:00:11]} 15. Rd1 {[%emt 0:04:05]} Qf6 {[%emt 0:19:49]} 16. Qa5 {[%emt 0:10:43]} Qg6 {[%emt 0:20:41]} 17. Kh1 {[%emt 0:01:20]} Bd3 {[%emt 0:15:39]} 18. Ba3 {[%emt 0:05:24]} e4 {[%emt 0:00:02]} 19. Qxc5 {[%emt 0:03:09]} Rfe8 {[%emt 0:01:24]} 20. Rd2 {[%emt 0:02:00]} Qe6 {[%emt 0:03:10]} 21. Bb4 {[%emt 0:06:39]} 1/2-1/2

[Event "Vergani Le Terrazze-Elite 2019"]
[Site "Villorba"]
[Date "2019.01.05"]
[Round "7"]
[White "Sadhwani, Raunak"]
[Black "Epishin, Vladimir"]
[Result "0-1"]
[ECO "B01"]
[WhiteElo "2451"]
[BlackElo "2563"]
[Annotator "ChessBase"]
[PlyCount "42"]
[EventDate "2019.01.02"]
[EventType "swiss"]
[EventCountry "ITA"]
[SourceTitle "playchess.com"]
[Source "ChessBase"]
[SourceQuality "1"]
[TimeControl "5400+30"]

1. e4 {[%emt 0:00:00]} d5 {[%emt 0:00:06]} 2. exd5 {[%emt 0:00:00]} Qxd5 {[%emt 0:00:07]} 3. Nf3 {[%emt 0:00:21]} Nf6 {[%emt 0:04:55]} 4. Be2 {[%emt 0:00:17]} c5 {[%emt 0:02:52]} 5. O-O {[%emt 0:01:02]} Nc6 {[%emt 0:02:26]} 6. Nc3 {[%emt 0:00:09]} Qd8 {[%emt 0:00:32]} 7. Bb5 {[%emt 0:14:28]} Bd7 {[%emt 0:00:24]} 8. d4 {[%emt 0:10:38]} Nxd4 {[%emt 0:14:50]} 9. Nxd4 {[%emt 0:00:23]} cxd4 {[%emt 0:00:09]} 10. Qxd4 {[%emt 0:00:06]} Bxb5 {[%emt 0:02:41]} 11. Qxd8+ {[%emt 0:00:52]} Rxd8 {[%emt 0:07:58]} 12. Nxb5 {[%emt 0:00:05]} a6 {[%emt 0:00:46]} 13. Nc3 {[%emt 0:00:03]} e6 {[%emt 0:00:55]} 14. Bg5 {[%emt 0:01:22]} Be7 {[%emt 0:09:31]} 15. Rad1 {[%emt 0:00:15]} Nd7 {[%emt 0:03:51]} 16. Bf4 {[%emt 0:01:52]} Rc8 {[%emt 0:00:18]} 17. Rfe1 {[%emt 0:06:25]} Nb6 {[%emt 0:03:23]} 18. Re2 {[%emt 0:01:59]} O-O {[%emt 0:02:47]} 19. Ne4 {[%emt 0:00:52]} Rfd8 {[%emt 0:01:21]} 20. Rd3 {[%emt 0:58:51]} Rd7 21. Rxd7 {[%emt 0:00:00]} Rd8 {[%emt 0:00:57]} 0-1

[Event "Vergani Le Terrazze-Elite 2019"]
[Site "Villorba"]
[Date "2019.01.05"]
[Round "8"]
[White "Epishin, Vladimir"]
[Black "Prithu Gupta"]
[Result "1-0"]
[ECO "E12"]
[WhiteElo "2563"]
[BlackElo "2462"]
[Annotator "ChessBase"]
[PlyCount "94"]
[EventDate "2019.01.02"]
[EventType "swiss"]
[EventCountry "ITA"]
[SourceTitle "playchess.com"]
[Source "ChessBase"]
[SourceQuality "1"]
[TimeControl "5400+30"]

1. d4 {[%emt 0:00:00]} Nf6 {[%emt 0:00:00]} 2. Nf3 {[%emt 0:00:36]} e6 {[%emt 0:00:00]} 3. c4 {[%emt 0:00:25]} b6 {[%emt 0:00:00]} 4. Bg5 {[%emt 0:04:03]} Bb7 {[%emt 0:02:01]} 5. e3 {[%emt 0:11:42]} Be7 {[%emt 0:00:42]} 6. Bd3 {[%emt 0:00:21]} c5 {[%emt 0:05:31]} 7. O-O {[%emt 0:00:41]} cxd4 {[%emt 0:00:40]} 8. Nxd4 {[%emt 0:00:30]} d6 {[%emt 0:01:51]} 9. Nc3 {[%emt 0:01:09]} Nbd7 {[%emt 0:00:05]} 10. Rc1 {[%emt 0:00:58]} a6 {[%emt 0:00:16]} 11. b3 {[%emt 0:00:30]} O-O {[%emt 0:00:20]} 12. Qe2 {[%emt 0:00:07]} Qc7 {[%emt 0:03:52]} 13. Rfd1 {[%emt 0:00:56]} Rac8 {[%emt 0:02:58]} 14. Bh4 {[%emt 0:03:34]} Rfe8 {[%emt 0:03:06]} 15. Bg3 {[%emt 0:00:50]} Qb8 {[%emt 0:01:53]} 16. Bb1 {[%emt 0:00:26]} Qa8 {[%emt 0:07:54]} 17. Nf3 {[%emt 0:02:26]} e5 {[%emt 0:04:53]} 18. Bh4 {[%emt 0:02:29]} g6 {[%emt 0:02:29]} 19. e4 {[%emt 0:03:40]} Red8 {[%emt 0:02:45]} 20. a4 {[%emt 0:08:34]} Nc5 {[%emt 0:01:47]} 21. Bc2 {[%emt 0:01:17]} Rc7 {[%emt 0:03:17]} 22. Re1 {[%emt 0:05:41]} Ne6 {[%emt 0:05:34]} 23. Rcd1 {[%emt 0:01:28]} Qc8 {[%emt 0:06:31]} 24. Rd2 {[%emt 0:03:56]} Nf4 {[%emt 0:04:16]} 25. Qd1 {[%emt 0:00:27]} Qg4 {[%emt 0:01:29]} 26. Bg3 {[%emt 0:00:15]} N6h5 {[%emt 0:04:55]} 27. Re3 {[%emt 0:05:16]} Qc8 {[%emt 0:34:25]} 28. Bxf4 {[%emt 0:02:03]} Nxf4 {[%emt 0:00:00]} 29. g3 {[%emt 0:00:16]} Ne6 {[%emt 0:00:00]} 30. Nd5 {[%emt 0:01:37]} Bxd5 {[%emt 0:00:00]} 31. Rxd5 {[%emt 0:00:07]} Rc5 {[%emt 0:00:00]} 32. Re1 {[%emt 0:01:23]} b5 {[%emt 0:00:00]} 33. Bd3 {[%emt 0:04:07]} b4 {[%emt 0:00:00]} 34. Bf1 {[%emt 0:03:00]} Rxd5 {[%emt 0:00:00]} 35. cxd5 {[%emt 0:00:53]} Nc5 {[%emt 0:00:00]} 36. Nd2 {[%emt 0:00:06]} a5 {[%emt 0:00:00]} 37. Nc4 {[%emt 0:00:19]} Qc7 {[%emt 0:00:00]} 38. h4 {[%emt 0:00:48]} Rf8 {[%emt 0:00:00]} 39. h5 {[%emt 0:00:23]} Bg5 {[%emt 0:00:00]} 40. Bd3 {[%emt 0:02:25]} Bd8 {[%emt 0:00:13]} 41. Kg2 {[%emt 0:00:51]} Qe7 {[%emt 0:00:34]} 42. Rh1 {[%emt 0:01:31]} Bc7 {[%emt 0:00:53]} 43. Bc2 {[%emt 0:01:08]} Qf6 {[%emt 0:01:05]} 44. Qg4 {[%emt 0:01:24]} Qg7 {[%emt 0:00:25]} 45. Qh4 {[%emt 0:03:37]} Bd8 {[%emt 0:01:16]} 46. Qh3 {[%emt 0:00:30]} Bc7 {[%emt 0:01:11]} 47. Ne3 {[%emt 0:00:49]} h6 {[%emt 0:01:29]} 1-0

[Event "Vergani Le Terrazze-Elite 2019"]
[Site "Villorba"]
[Date "2019.01.05"]
[Round "8"]
[White "Velten, Paul"]
[Black "Sonis, Francesco"]
[Result "1/2-1/2"]
[ECO "D10"]
[WhiteElo "2496"]
[BlackElo "2473"]
[Annotator "ChessBase"]
[PlyCount "45"]
[EventDate "2019.01.02"]
[EventType "swiss"]
[EventCountry "ITA"]
[SourceTitle "playchess.com"]
[Source "ChessBase"]
[SourceQuality "1"]
[TimeControl "5400+30"]

1. d4 {[%emt 0:00:20]} d5 {[%emt 0:00:00]} 2. c4 {[%emt 0:00:18]} c6 {[%emt 0:00:00]} 3. e3 {[%emt 0:00:46]} Nf6 {[%emt 0:00:39]} 4. Nc3 {[%emt 0:00:38]} Be6 {[%emt 0:03:13]} 5. cxd5 {[%emt 0:03:18]} Nxd5 {[%emt 0:01:45]} 6. Nf3 {[%emt 0:01:19]} Bg4 {[%emt 0:02:32]} 7. Bd3 {[%emt 0:09:01]} g6 {[%emt 0:00:13]} 8. h3 {[%emt 0:03:28]} Bxf3 {[%emt 0:00:30]} 9. Qxf3 {[%emt 0:00:07]} Bg7 {[%emt 0:00:03]} 10. Bc4 {[%emt 0:00:31]} e6 {[%emt 0:00:55]} 11. O-O {[%emt 0:00:21]} O-O {[%emt 0:00:04]} 12. Rd1 {[%emt 0:00:10]} Nd7 {[%emt 0:02:45]} 13. e4 {[%emt 0:01:48]} N5b6 {[%emt 0:00:05]} 14. Bb3 {[%emt 0:00:26]} Qe7 {[%emt 0:01:37]} 15. Be3 {[%emt 0:03:55]} Rfd8 {[%emt 0:02:27]} 16. e5 {[%emt 0:10:18]} Nd5 {[%emt 0:00:26]} 17. Ne4 {[%emt 0:00:16]} Nxe3 {[%emt 0:00:26]} 18. fxe3 {[%emt 0:00:41]} Rf8 {[%emt 0:05:22]} 19. Rac1 {[%emt 0:13:09]} f6 {[%emt 0:05:04]} 20. Qg4 {[%emt 0:02:42]} f5 {[%emt 0:03:00]} 21. Qg5 {[%emt 0:00:19]} Rfe8 {[%emt 0:00:53]} 22. Qxe7 {[%emt 0:01:04]} Rxe7 {[%emt 0:00:02]} 23. Nc5 {[%emt 0:03:12]} 1/2-1/2